Workbook

Sheet Introduction
B9: Introduction
B10: Overview | C10: Once your district identifies the specific areas for investment, based on the instructional priorities, and the ways in which you can pay for those investments, you must determine weigh the tradeoffs between discontinuing existing programs and investing in new instructional priorities. This decision requires your district to consider tradeoffs. This tool provides district leadership with an interactive template to balance these tradeoffs between investments and cost savings over the next 1-5 years.
B11: What will you get out of this tool? | C11: 1. The ability to see the impact of each decision as leadership weighs each opportunity 2. A tool to weigh the tradeoffs between investments and cost savings, between timing to implement each, and between financial and student impact. 3. A summary of the financial decisions made by the district for inclusion in a strategic financial plan
B12: When should you do this activity? | C12: Pay for Priorities Phase - Step 3B Evaluate & Prioritize Use of Resources to Enact the Instructional Priorities At this point in the Smarter School Spending process, your district should have identified the costs of investment priorities and cost saving opportunities. The tool requires the input of costs and savings over the next 1-5 years.
B13: How long will it take to complete? | C13: 1 hour for the project lead to set up the tool with the information and financial estimates 1-4 hours for the senior leadership team to review, discuss, and make decisions
B14: Who should be involved? | C14: The project lead to compile the needed information on the instructional priorities and cost savings. The senior leadership team should use the tool to weigh the options, and eventually, make the final recommendations for inclusion in a strategic financial plan
B15: Is technical assistance support necessary? | C15: No, technical assistance is not necessary Additional support could be helpful in facilitating a discussion of the leadership to come to a final decision
B16: Tips & Tricks | C16: -As your district weighs the tradeoffs financially, you should also take into account the impact that both investments and savings will have on student achievement -Look out for cells with red tags on them. Hover your mouse over those cells to reveal helpful comments for help in completing the tool

Sheet Balance Tradeoffs- Years 1 to 5
L2: Balance Tradeoffs: Years 1- 5 | P2: Year 1 Fiscal Year: | Q2: 2021
L4: Summary of Analyses | V4: Summary of Decisions
L5: PROJECT MANAGER: Findings from Analyses | V5: DISTRICT LEADERSHIP: Decisions for Strategic Finance Plan
N6: Year 1 | O6: Year 2 | P6: Year 3 | Q6: Year 4 | R6: Year 5 | S6: Total (Years 1-5) | AA6: =$Q$2 -> 2021 | AB6: =AA6+1 -> 2022 | AC6: =AB6+1 -> 2023 | AD6: =AC6+1 -> 2024 | AE6: =AD6+1 -> 2025 | AF6: ="Total ("&AA6&" - "&AE6&")" -> Total (2021 - 2025)
L7: Projected Revenue | N7: 500000000 | O7: 500000000 | P7: 500000000 | Q7: 500000000 | R7: 500000000 | S7: =IF(SUM(N7:R7)=0,"",SUM(N7:R7)) -> 2500000000 | V7: Projected Revenue | AA7: =N7 -> 500000000 | AB7: 500000000 | AC7: 500000000 | AD7: 500000000 | AE7: 500000000 | AF7: 2500000000
L8: Projected Expenses | N8: 510000000 | O8: 510000000 | P8: 510000000 | Q8: 520000000 | R8: 520000000 | S8: =IF(SUM(N8:R8)=0,"",SUM(N8:R8)) -> 2570000000 | V8: Projected Expenses | AA8: =N8 -> 510000000 | AB8: =O8 -> 510000000 | AC8: =P8 -> 510000000 | AD8: =Q8 -> 520000000 | AE8: =R8 -> 520000000 | AF8: =S8 -> 2570000000
L9: Current Projected Budget Balance | N9: =IFERROR(N7-N8,"") -> -10000000 | O9: =IFERROR(O7-O8,"") -> -10000000 | P9: -10000000 | Q9: -20000000 | R9: -20000000 | S9: =SUM(N9:R9) -> -70000000 | V9: Current Projected Budget Balance | AA9: =IFERROR(AA7-AA8,"") -> -10000000 | AB9: =IFERROR(AB7-AB8,"") -> -10000000 | AC9: -10000000 | AD9: -20000000 | AE9: -20000000 | AF9: =SUM(AA9:AE9) -> -70000000
L10: Total Investments | N10: =SUM(N$24:N$43) -> 8000000 | O10: =SUM(O$24:O$43) -> 13000000 | P10: 17000000 | Q10: 17000000 | R10: 17000000 | S10: =SUM(N10:R10) -> 72000000 | V10: Total Investments | AA10: =SUMIFS(AA$24:AA$43,$AH$24:$AH$43,"Yes") -> 8000000 | AB10: =SUMIFS(AB$24:AB$43, $AH$24:$AH$43, "Yes") -> 13000000 | AC10: =SUMIFS(AC$24:AC$43, $AH$24:$AH$43, "Yes") -> 17000000 | AD10: =SUMIFS(AD$24:AD$43, $AH$24:$AH$43, "Yes") -> 17000000 | AE10: =SUMIFS(AE$24:AE$43, $AH$24:$AH$43, "Yes") -> 17000000 | AF10: =SUM(AA10:AE10) -> 72000000
L11: Total Annual Cost Savings | N11: =SUM(N$50:N$69) -> 20000000 | O11: =SUM(O$50:O$69) -> 23000000 | P11: 38000000 | Q11: 38000000 | R11: 38000000 | S11: =SUM(N11:R11) -> 157000000 | V11: Total Cost Savings | AA11: =SUMIFS(AA$50:AA$69, $AH$50:$AH$69, "Yes") -> 15000000 | AB11: =SUMIFS(AB$50:AB$69, $AH$50:$AH$69, "Yes") -> 18000000 | AC11: 30500000 | AD11: 30500000 | AE11: 38000000 | AF11: =SUM(AA11:AE11) -> 132000000
L12: Projected Revenue | N12: =N7 -> 500000000 | O12: =O7 -> 500000000 | P12: 500000000 | Q12: 500000000 | R12: 500000000 | S12: =IF(SUM(N12:R12)=0,"",SUM(N12:R12)) -> 2500000000 | V12: Projected Revenue | AA12: =AA7 -> 500000000 | AB12: 500000000 | AC12: 500000000 | AD12: 500000000 | AE12: 500000000 | AF12: =S12 -> 2500000000
L13: (Revised) Projected Expenses | N13: =(N8+N10)-N11 -> 498000000 | O13: =(O8+O10)-O11 -> 500000000 | P13: =(P8+P10)-P11 -> 489000000 | Q13: 499000000 | R13: 499000000 | S13: =IF(SUM(N13:R13)=0,"",SUM(N13:R13)) -> 2485000000 | V13: (Revised) Projected Expenses | AA13: =(AA8+AA10)-AA11 -> 503000000 | AB13: =(AB8+AB10)-AB11 -> 505000000 | AC13: =(AC8+AC10)-AC11 -> 496500000 | AD13: 506500000 | AE13: 499000000 | AF13: 2485000000
L14: New Budget Balance | N14: =N12-N13 -> 2000000 | O14: =O12-O13 -> 0 | P14: 11000000 | Q14: 1000000 | R14: 1000000 | S14: =SUM(N14:R14) -> 15000000 | V14: New Budget Balance | AA14: =AA12-AA13 -> -3000000 | AB14: -5000000 | AC14: 3500000 | AD14: -6500000 | AE14: 1000000 | AF14: =SUM(AA14:AE14) -> -10000000
L16: Total Dollars Moved | N16: =SUM(N10:N11) -> 28000000 | O16: =SUM(O10:O11) -> 36000000 | P16: 55000000 | Q16: 55000000 | R16: 55000000 | S16: =SUM(N16:R16) -> 229000000 | V16: Total Dollars Moved | AA16: =SUM(AA10:AA11) -> 23000000 | AB16: =SUM(AB10:AB11) -> 31000000 | AC16: 47500000 | AD16: 47500000 | AE16: 55000000 | AF16: =SUM(AA16:AE16) -> 204000000
L17: % of Budget Affected | N17: =IFERROR(N16/N7,"") -> 0.056 | O17: =IFERROR(O16/O7,"") -> 0.072 | P17: 0.11 | Q17: 0.11 | R17: 0.11 | S17: 0.0916 | V17: % of Budget Affected | AA17: =IFERROR(AA16/AA7,"") -> 0.046 | AB17: =IFERROR(AB16/AB7,"") -> 0.062 | AC17: =IFERROR(AC16/AC7,"") -> 0.095 | AD17: =IFERROR(AD16/AD7,"") -> 0.095 | AE17: =IFERROR(AE16/AE7,"") -> 0.11 | AF17: =IFERROR(AF16/AF7,"") -> 0.0816
AA19: 2 | AB19: 3 | AC19: 4 | AD19: 5 | AE19: 6 | AH19: << DO NOT DELETE THESE NUMBERS
L20: Investments
L21: PROJECT MANAGER: Findings from Analyses | V21: DISTRICT LEADERSHIP: Decisions for Strategic Finance Plan
L22: Category | M22: Description | N22: Proposed Costs of Investments | S22: Total Proposed Investment (Years 1-5) | T22: Number of Students Impacted | V22: % of Proposed Investment to Implement | AA22: Adjusted Cost of Investment to Implement | AF22: ="Total Investments ("&AA23&" - "&AE23&")" -> Total Investments (2021 - 2025) | AG22: Impact on Student Achievement | AH22: Include in Strategic Finance Plan | AI22: Relative Year to Begin Investment | AJ22: Year to Begin Investment
N23: Year 1 | O23: Year 2 | P23: Year 3 | Q23: Year 4 | R23: Year 5 | V23: Year 1 | W23: Year 2 | X23: Year 3 | Y23: Year 4 | Z23: Year 5 | AA23: =$Q$2 -> 2021 | AB23: =AA23+1 -> 2022 | AC23: =AB23+1 -> 2023 | AD23: 2024 | AE23: 2025
L24: Support for Teachers | M24: Instructional coaches | N24: 6000000 | O24: 5000000 | P24: 5000000 | Q24: 5000000 | R24: 5000000 | S24: =IFERROR(IF(COUNTA(N24:R24)=0,"",SUM(N24:R24)),"Error") -> 26000000 | V24: 1 | W24: 1 | X24: 1 | Y24: 1 | Z24: 1 | AA24: =IFERROR(IF((AA$19-$AI24)<=0,"",IF(OR(INDEX($N24:$R24,1,(AA$19-$AI24))="",INDEX($V24:$Z24,1,(AA$19-$AI24))="",$AH24="No"),"",INDEX($N24:$R24,1,(AA$19-$AI24))*INDEX($V24:$Z24,1,(AA$19-$AI24)))),"") -> 6000000 | AB24: 5000000 | AC24: 5000000 | AD24: 5000000 | AE24: 5000000 | AF24: =IFERROR(IF(OR(COUNTA(V24:Z24)=0,$AH24="No"),"",SUM(AA24:AE24)),"Error") -> 26000000 | AG24: High | AH24: Yes | AI24: =IFERROR(VLOOKUP(AJ24,'Data Reference'!$B$7:$C$11,2,FALSE),1) -> 1 | AJ24: 2016
L25: High Standards | M25: New Assessments | N25: 1000000 | O25: 1000000 | P25: 1000000 | Q25: 1000000 | R25: 1000000 | S25: =IFERROR(IF(COUNTA(N25:R25)=0,"",SUM(N25:R25)),"Error") -> 5000000 | V25: 1 | W25: 1 | X25: 1 | Y25: 1 | Z25: 1 | AA25: 1000000 | AB25: 1000000 | AC25: 1000000 | AD25: 1000000 | AE25: 1000000 | AF25: 5000000 | AG25: High | AH25: Yes | AI25: =IFERROR(VLOOKUP(AJ25,'Data Reference'!$B$7:$C$11,2,FALSE),1) -> 1 | AJ25: 2015
L26: College Readiness | M26: Guidance Counselors | O26: 2000000 | P26: 1000000 | Q26: 1000000 | R26: 1000000 | S26: 5000000 | V26: 1 | W26: 1 | X26: 1 | Y26: 1 | Z26: 1 | AB26: 2000000 | AC26: 1000000 | AD26: 1000000 | AE26: 1000000 | AF26: 5000000 | AG26: High | AH26: Yes | AI26: =IFERROR(VLOOKUP(AJ26,'Data Reference'!$B$7:$C$11,2,FALSE),1) -> 1 | AJ26: 2015
L27: College Readiness | M27: AP and Vocational courses | O27: 5000000 | P27: 10000000 | Q27: 10000000 | R27: 10000000 | S27: 35000000 | V27: 1 | W27: 1 | X27: 1 | Y27: 1 | Z27: 1 | AB27: 5000000 | AC27: 10000000 | AD27: 10000000 | AE27: 10000000 | AF27: 35000000 | AG27: High | AH27: Yes | AI27: =IFERROR(VLOOKUP(AJ27,'Data Reference'!$B$7:$C$11,2,FALSE),1) -> 1 | AJ27: 2017
L28: Support for Teachers | M28: Outside provider to redo schedules | N28: 1000000 | S28: 1000000 | V28: 1 | W28: 1 | X28: 1 | Y28: 1 | Z28: 1 | AA28: 1000000 | AF28: 1000000 | AG28: Low | AH28: Yes | AI28: =IFERROR(VLOOKUP(AJ28,'Data Reference'!$B$7:$C$11,2,FALSE),1) -> 1 | AJ28: 2017
AI29: =IFERROR(VLOOKUP(AJ29,'Data Reference'!$B$7:$C$11,2,FALSE),1) -> 1
AI30: =IFERROR(VLOOKUP(AJ30,'Data Reference'!$B$7:$C$11,2,FALSE),1) -> 1
AI31: =IFERROR(VLOOKUP(AJ31,'Data Reference'!$B$7:$C$11,2,FALSE),1) -> 1
AI32: =IFERROR(VLOOKUP(AJ32,'Data Reference'!$B$7:$C$11,2,FALSE),1) -> 1
AI33: =IFERROR(VLOOKUP(AJ33,'Data Reference'!$B$7:$C$11,2,FALSE),1) -> 1
AA34: =IFERROR(IF((AA$19-$AI34)<=0,"",IF(OR(INDEX($N34:$R34,1,(AA$19-$AI34))="",INDEX($V34:$Z34,1,(AA$19-$AI34))="",$AH34="No"),"",INDEX($N34:$R34,1,(AA$19-$AI34))*INDEX($V34:$Z34,1,(AA$19-$AI34)))),"") ->  | AI34: =IFERROR(VLOOKUP(AJ34,'Data Reference'!$B$7:$C$11,2,FALSE),1) -> 1
AI35: =IFERROR(VLOOKUP(AJ35,'Data Reference'!$B$7:$C$11,2,FALSE),1) -> 1
AI36: =IFERROR(VLOOKUP(AJ36,'Data Reference'!$B$7:$C$11,2,FALSE),1) -> 1
AI37: =IFERROR(VLOOKUP(AJ37,'Data Reference'!$B$7:$C$11,2,FALSE),1) -> 1
AI38: =IFERROR(VLOOKUP(AJ38,'Data Reference'!$B$7:$C$11,2,FALSE),1) -> 1
AI39: =IFERROR(VLOOKUP(AJ39,'Data Reference'!$B$7:$C$11,2,FALSE),1) -> 1
AI40: =IFERROR(VLOOKUP(AJ40,'Data Reference'!$B$7:$C$11,2,FALSE),1) -> 1
AI41: =IFERROR(VLOOKUP(AJ41,'Data Reference'!$B$7:$C$11,2,FALSE),1) -> 1
AI42: =IFERROR(VLOOKUP(AJ42,'Data Reference'!$B$7:$C$11,2,FALSE),1) -> 1
AI43: =IFERROR(VLOOKUP(AJ43,'Data Reference'!$B$7:$C$11,2,FALSE),1) -> 1
L46: Cost Savings
L47: PROJECT MANAGER: Findings from Analyses | V47: DISTRICT LEADERSHIP: Decisions for Strategic Finance Plan
L48: Category | M48: Description | N48: Proposed Opportunity from Cost Savings | S48: Total Proposed Savings (Years 1-5) | T48: Number of Student Impacted | V48: % of Proposed Savings to Implement | AA48: Adjusted Savings to Implement | AF48: ="Total Investments ("&AA49&" - "&AE49&")" -> Total Investments (2021 - 2025) | AG48: Impact on Student Achievement | AH48: Include in Strategic Finance Plan | AI48: Relative Year to Begin Opportunity | AJ48: Year to Begin Opportunity
N49: Year 1 | O49: Year 2 | P49: Year 3 | Q49: Year 4 | R49: Year 5 | V49: Year 1 | W49: Year 2 | X49: Year 3 | Y49: Year 4 | Z49: Year 5 | AA49: =$Q$2 -> 2021 | AB49: =AA49+1 -> 2022 | AC49: =AB49+1 -> 2023 | AD49: 2024 | AE49: 2025
L50: Central Office | M50: Central Office | N50: 10000000 | O50: 10000000 | P50: 10000000 | Q50: 10000000 | R50: 10000000 | S50: =IFERROR(IF(COUNTA(N50:R50)=0,"",SUM(N50:R50)),"Error") -> 50000000 | V50: 0.5 | W50: 0.5 | X50: 1 | Y50: 1 | Z50: 1 | AA50: =IFERROR(IF((AA$19-$AI50)<=0,"",IF(OR(INDEX($N50:$R50,1,(AA$19-$AI50))="",INDEX($V50:$Z50,1,(AA$19-$AI50))="",$AH50="No"),"",INDEX($N50:$R50,1,(AA$19-$AI50))*INDEX($V50:$Z50,1,(AA$19-$AI50)))),"") -> 5000000 | AB50: 5000000 | AC50: 10000000 | AD50: 10000000 | AE50: 10000000 | AF50: =IFERROR(IF(OR(COUNTA(V50:Z50)=0,$AH50="No"),"",SUM(AA50:AE50)),"Error") -> 40000000 | AG50: None/Neutral | AH50: Yes | AI50: =IFERROR(VLOOKUP(AJ50,'Data Reference'!$B$7:$C$11,2,FALSE),1) -> 1 | AJ50: 2015
L51: PD | M51: PD | N51: 5000000 | O51: 5000000 | P51: 5000000 | Q51: 5000000 | R51: 5000000 | S51: =IFERROR(IF(COUNTA(N51:R51)=0,"",SUM(N51:R51)),"Error") -> 25000000 | V51: 1 | W51: 1 | X51: 1 | Y51: 1 | Z51: 1 | AA51: 5000000 | AB51: 5000000 | AC51: 5000000 | AD51: 5000000 | AE51: 5000000 | AF51: 25000000 | AG51: Low | AH51: Yes | AI51: =IFERROR(VLOOKUP(AJ51,'Data Reference'!$B$7:$C$11,2,FALSE),1) -> 1 | AJ51: 2015
L52: Instruction | M52: Out of District Placements | N52: 5000000 | O52: 5000000 | P52: 5000000 | Q52: 5000000 | R52: 5000000 | S52: 25000000 | V52: 1 | W52: 1 | X52: 1 | Y52: 1 | Z52: 1 | AA52: 5000000 | AB52: 5000000 | AC52: 5000000 | AD52: 5000000 | AE52: 5000000 | AF52: 25000000 | AG52: Low | AH52: Yes | AI52: =IFERROR(VLOOKUP(AJ52,'Data Reference'!$B$7:$C$11,2,FALSE),1) -> 1 | AJ52: 2015
L53: Instruction | M53: Slight increase in class size through faculty attrition | P53: 15000000 | Q53: 15000000 | R53: 15000000 | S53: 45000000 | V53: 1 | W53: 1 | X53: 0.5 | Y53: 0.5 | Z53: 1 | AC53: 7500000 | AD53: 7500000 | AE53: 15000000 | AF53: 30000000 | AG53: Low | AH53: Yes | AI53: =IFERROR(VLOOKUP(AJ53,'Data Reference'!$B$7:$C$11,2,FALSE),1) -> 1 | AJ53: 2015
L54: Buildings and Maintenance | M54: Consolidatiion of Lawn Care Services | O54: 3000000 | P54: 3000000 | Q54: 3000000 | R54: 3000000 | S54: 12000000 | V54: 1 | W54: 1 | X54: 1 | Y54: 1 | Z54: 1 | AB54: 3000000 | AC54: 3000000 | AD54: 3000000 | AE54: 3000000 | AF54: 12000000 | AG54: None/Neutral | AH54: Yes | AI54: =IFERROR(VLOOKUP(AJ54,'Data Reference'!$B$7:$C$11,2,FALSE),1) -> 1 | AJ54: 2015
AI55: =IFERROR(VLOOKUP(AJ55,'Data Reference'!$B$7:$C$11,2,FALSE),1) -> 1
AI56: =IFERROR(VLOOKUP(AJ56,'Data Reference'!$B$7:$C$11,2,FALSE),1) -> 1
AI57: =IFERROR(VLOOKUP(AJ57,'Data Reference'!$B$7:$C$11,2,FALSE),1) -> 1
AI58: =IFERROR(VLOOKUP(AJ58,'Data Reference'!$B$7:$C$11,2,FALSE),1) -> 1
AI59: =IFERROR(VLOOKUP(AJ59,'Data Reference'!$B$7:$C$11,2,FALSE),1) -> 1
AA60: =IFERROR(IF((AA$19-$AI60)<=0,"",IF(OR(INDEX($N60:$R60,1,(AA$19-$AI60))="",INDEX($V60:$Z60,1,(AA$19-$AI60))="",$AH60="No"),"",INDEX($N60:$R60,1,(AA$19-$AI60))*INDEX($V60:$Z60,1,(AA$19-$AI60)))),"") ->  | AI60: =IFERROR(VLOOKUP(AJ60,'Data Reference'!$B$7:$C$11,2,FALSE),1) -> 1
AI61: =IFERROR(VLOOKUP(AJ61,'Data Reference'!$B$7:$C$11,2,FALSE),1) -> 1
AI62: =IFERROR(VLOOKUP(AJ62,'Data Reference'!$B$7:$C$11,2,FALSE),1) -> 1
AI63: =IFERROR(VLOOKUP(AJ63,'Data Reference'!$B$7:$C$11,2,FALSE),1) -> 1
AI64: =IFERROR(VLOOKUP(AJ64,'Data Reference'!$B$7:$C$11,2,FALSE),1) -> 1
AI65: =IFERROR(VLOOKUP(AJ65,'Data Reference'!$B$7:$C$11,2,FALSE),1) -> 1
AI66: =IFERROR(VLOOKUP(AJ66,'Data Reference'!$B$7:$C$11,2,FALSE),1) -> 1
AI67: =IFERROR(VLOOKUP(AJ67,'Data Reference'!$B$7:$C$11,2,FALSE),1) -> 1
AI68: =IFERROR(VLOOKUP(AJ68,'Data Reference'!$B$7:$C$11,2,FALSE),1) -> 1
AI69: =IFERROR(VLOOKUP(AJ69,'Data Reference'!$B$7:$C$11,2,FALSE),1) -> 1

Sheet Data Reference (hidden)
A1: DO NOT DELETE: Information here used for drop down functionality in the spreadsheet
B3: Yes | E3: Enter as $0
B4: No | E4: Use year 5 estimates
B6: Calendar Year | C6: Relative Year
B7: ='Balance Tradeoffs- Years 1 to 5'!Q2 -> 2021 | C7: 1 | E7: None/Neutral
B8: =B7+1 -> 2022 | C8: 2 | E8: Low
B9: =B8+1 -> 2023 | C9: 3 | E9: Medium
B10: 2024 | C10: 4 | E10: High
B11: 2025 | C11: 5
B13: 2014
B14: 2015
B15: 2016
B16: 2017
B17: 2018
B18: 2019
B19: 2020
B20: 2021
B21: 2022
B22: 2023
B23: 2024
B24: 2025
B25: 2026
B26: 2027
B27: 2028
B28: 2029
B29: 2030
B30: 2031
B31: 2032
B32: 2033
B33: 2034
B34: 2035
B35: 2036
B36: 2037

Sheet Summary of Decisions
A1: Summary of Decisions
AM4: =AC8 -> 2021 | AN4: =AD8 -> 2022 | AO4: =AE8 -> 2023 | AP4: =AF8 -> 2024 | AQ4: =AG8 -> 2025 | AR4: 5 Year Total
AL5: =AB11 -> Original Projected Budget Balance | AM5: -10000000 | AN5: -10000000 | AO5: -10000000 | AP5: -20000000 | AQ5: -20000000 | AR5: 0
AK6: INVESTMENTS
AK7: =IF('Balance Tradeoffs- Years 1 to 5'!$AH24="Yes",'Balance Tradeoffs- Years 1 to 5'!L24,"") -> Support for Teachers | AL7: =IF('Balance Tradeoffs- Years 1 to 5'!$AH24="Yes",'Balance Tradeoffs- Years 1 to 5'!M24,"") -> Instructional coaches | AM7: =IFERROR(IF('Balance Tradeoffs- Years 1 to 5'!$AH24="Yes",'Balance Tradeoffs- Years 1 to 5'!N24,"")*-1,"") -> -6000000 | AN7: =IFERROR(IF('Balance Tradeoffs- Years 1 to 5'!$AH24="Yes",'Balance Tradeoffs- Years 1 to 5'!O24,"")*-1,"") -> -5000000 | AO7: =IFERROR(IF('Balance Tradeoffs- Years 1 to 5'!$AH24="Yes",'Balance Tradeoffs- Years 1 to 5'!P24,"")*-1,"") -> -5000000 | AP7: =IFERROR(IF('Balance Tradeoffs- Years 1 to 5'!$AH24="Yes",'Balance Tradeoffs- Years 1 to 5'!Q24,"")*-1,"") -> -5000000 | AQ7: =IFERROR(IF('Balance Tradeoffs- Years 1 to 5'!$AH24="Yes",'Balance Tradeoffs- Years 1 to 5'!R24,"")*-1,"") -> -5000000 | AR7: =IFERROR(IF('Balance Tradeoffs- Years 1 to 5'!$AH24="Yes",'Balance Tradeoffs- Years 1 to 5'!S24,"")*-1,"") -> -26000000
E8: ='Balance Tradeoffs- Years 1 to 5'!AA6 -> 2021 | F8: ='Balance Tradeoffs- Years 1 to 5'!AB6 -> 2022 | G8: ='Balance Tradeoffs- Years 1 to 5'!AC6 -> 2023 | H8: ='Balance Tradeoffs- Years 1 to 5'!AD6 -> 2024 | I8: ='Balance Tradeoffs- Years 1 to 5'!AE6 -> 2025 | J8: ='Balance Tradeoffs- Years 1 to 5'!AF6 -> Total (2021 - 2025) | Q8: =E8 -> 2021 | R8: =F8 -> 2022 | S8: =G8 -> 2023 | T8: =H8 -> 2024 | U8: =I8 -> 2025 | V8: =J8 -> Total (2021 - 2025) | W8: =K8 -> 0 | AC8: =Q8 -> 2021 | AD8: =R8 -> 2022 | AE8: =S8 -> 2023 | AF8: =T8 -> 2024 | AG8: =U8 -> 2025 | AK8: =IF('Balance Tradeoffs- Years 1 to 5'!$AH25="Yes",'Balance Tradeoffs- Years 1 to 5'!L25,"") -> High Standards | AL8: =IF('Balance Tradeoffs- Years 1 to 5'!$AH25="Yes",'Balance Tradeoffs- Years 1 to 5'!M25,"") -> New Assessments | AM8: =IFERROR(IF('Balance Tradeoffs- Years 1 to 5'!$AH25="Yes",'Balance Tradeoffs- Years 1 to 5'!N25,"")*-1,"") -> -1000000 | AN8: =IFERROR(IF('Balance Tradeoffs- Years 1 to 5'!$AH25="Yes",'Balance Tradeoffs- Years 1 to 5'!O25,"")*-1,"") -> -1000000 | AO8: =IFERROR(IF('Balance Tradeoffs- Years 1 to 5'!$AH25="Yes",'Balance Tradeoffs- Years 1 to 5'!P25,"")*-1,"") -> -1000000 | AP8: =IFERROR(IF('Balance Tradeoffs- Years 1 to 5'!$AH25="Yes",'Balance Tradeoffs- Years 1 to 5'!Q25,"")*-1,"") -> -1000000 | AQ8: =IFERROR(IF('Balance Tradeoffs- Years 1 to 5'!$AH25="Yes",'Balance Tradeoffs- Years 1 to 5'!R25,"")*-1,"") -> -1000000 | AR8: =IFERROR(IF('Balance Tradeoffs- Years 1 to 5'!$AH25="Yes",'Balance Tradeoffs- Years 1 to 5'!S25,"")*-1,"") -> -5000000
D9: ='Balance Tradeoffs- Years 1 to 5'!V7 -> Projected Revenue | E9: ='Balance Tradeoffs- Years 1 to 5'!AA7 -> 500000000 | F9: ='Balance Tradeoffs- Years 1 to 5'!AB7 -> 500000000 | G9: ='Balance Tradeoffs- Years 1 to 5'!AC7 -> 500000000 | H9: ='Balance Tradeoffs- Years 1 to 5'!AD7 -> 500000000 | I9: ='Balance Tradeoffs- Years 1 to 5'!AE7 -> 500000000 | J9: ='Balance Tradeoffs- Years 1 to 5'!AF7 -> 2500000000 | P9: =D9 -> Projected Revenue | Q9: 500000000 | R9: 500000000 | S9: 500000000 | T9: 500000000 | U9: 500000000 | V9: 2500000000 | W9: 0 | AB9: =P9 -> Projected Revenue | AC9: 500000000 | AD9: 500000000 | AE9: 500000000 | AF9: 500000000 | AG9: 500000000 | AK9: =IF('Balance Tradeoffs- Years 1 to 5'!$AH26="Yes",'Balance Tradeoffs- Years 1 to 5'!L26,"") -> College Readiness | AL9: =IF('Balance Tradeoffs- Years 1 to 5'!$AH26="Yes",'Balance Tradeoffs- Years 1 to 5'!M26,"") -> Guidance Counselors | AM9: =IFERROR(IF('Balance Tradeoffs- Years 1 to 5'!$AH26="Yes",'Balance Tradeoffs- Years 1 to 5'!N26,"")*-1,"") -> 0 | AN9: =IFERROR(IF('Balance Tradeoffs- Years 1 to 5'!$AH26="Yes",'Balance Tradeoffs- Years 1 to 5'!O26,"")*-1,"") -> -2000000 | AO9: =IFERROR(IF('Balance Tradeoffs- Years 1 to 5'!$AH26="Yes",'Balance Tradeoffs- Years 1 to 5'!P26,"")*-1,"") -> -1000000 | AP9: =IFERROR(IF('Balance Tradeoffs- Years 1 to 5'!$AH26="Yes",'Balance Tradeoffs- Years 1 to 5'!Q26,"")*-1,"") -> -1000000 | AQ9: =IFERROR(IF('Balance Tradeoffs- Years 1 to 5'!$AH26="Yes",'Balance Tradeoffs- Years 1 to 5'!R26,"")*-1,"") -> -1000000 | AR9: =IFERROR(IF('Balance Tradeoffs- Years 1 to 5'!$AH26="Yes",'Balance Tradeoffs- Years 1 to 5'!S26,"")*-1,"") -> -5000000
D10: ='Balance Tradeoffs- Years 1 to 5'!V8 -> Projected Expenses | E10: ='Balance Tradeoffs- Years 1 to 5'!AA8*-1 -> -510000000 | F10: ='Balance Tradeoffs- Years 1 to 5'!AB8*-1 -> -510000000 | G10: ='Balance Tradeoffs- Years 1 to 5'!AC8*-1 -> -510000000 | H10: ='Balance Tradeoffs- Years 1 to 5'!AD8*-1 -> -520000000 | I10: ='Balance Tradeoffs- Years 1 to 5'!AE8*-1 -> -520000000 | J10: ='Balance Tradeoffs- Years 1 to 5'!AF8*-1 -> -2570000000 | P10: Projected Expenses | Q10: -510000000 | R10: -510000000 | S10: -510000000 | T10: -520000000 | U10: -520000000 | V10: -2570000000 | W10: 0 | AB10: Projected Expenses | AC10: -510000000 | AD10: -510000000 | AE10: -510000000 | AF10: -520000000 | AG10: -520000000 | AK10: =IF('Balance Tradeoffs- Years 1 to 5'!$AH27="Yes",'Balance Tradeoffs- Years 1 to 5'!L27,"") -> College Readiness | AL10: =IF('Balance Tradeoffs- Years 1 to 5'!$AH27="Yes",'Balance Tradeoffs- Years 1 to 5'!M27,"") -> AP and Vocational courses | AM10: =IFERROR(IF('Balance Tradeoffs- Years 1 to 5'!$AH27="Yes",'Balance Tradeoffs- Years 1 to 5'!N27,"")*-1,"") -> 0 | AN10: =IFERROR(IF('Balance Tradeoffs- Years 1 to 5'!$AH27="Yes",'Balance Tradeoffs- Years 1 to 5'!O27,"")*-1,"") -> -5000000 | AO10: =IFERROR(IF('Balance Tradeoffs- Years 1 to 5'!$AH27="Yes",'Balance Tradeoffs- Years 1 to 5'!P27,"")*-1,"") -> -10000000 | AP10: =IFERROR(IF('Balance Tradeoffs- Years 1 to 5'!$AH27="Yes",'Balance Tradeoffs- Years 1 to 5'!Q27,"")*-1,"") -> -10000000 | AQ10: =IFERROR(IF('Balance Tradeoffs- Years 1 to 5'!$AH27="Yes",'Balance Tradeoffs- Years 1 to 5'!R27,"")*-1,"") -> -10000000 | AR10: =IFERROR(IF('Balance Tradeoffs- Years 1 to 5'!$AH27="Yes",'Balance Tradeoffs- Years 1 to 5'!S27,"")*-1,"") -> -35000000
D11: ='Balance Tradeoffs- Years 1 to 5'!V9 -> Current Projected Budget Balance | E11: ='Balance Tradeoffs- Years 1 to 5'!AA9 -> -10000000 | F11: ='Balance Tradeoffs- Years 1 to 5'!AB9 -> -10000000 | G11: ='Balance Tradeoffs- Years 1 to 5'!AC9 -> -10000000 | H11: ='Balance Tradeoffs- Years 1 to 5'!AD9 -> -20000000 | I11: ='Balance Tradeoffs- Years 1 to 5'!AE9 -> -20000000 | J11: ='Balance Tradeoffs- Years 1 to 5'!AF9 -> -70000000 | P11: Original Projected Budget Balance | Q11: =E11 -> -10000000 | R11: -10000000 | S11: -10000000 | T11: -20000000 | U11: -20000000 | V11: -70000000 | W11: 0 | AB11: Original Projected Budget Balance | AC11: -10000000 | AD11: -10000000 | AE11: -10000000 | AF11: -20000000 | AG11: -20000000 | AK11: =IF('Balance Tradeoffs- Years 1 to 5'!$AH28="Yes",'Balance Tradeoffs- Years 1 to 5'!L28,"") -> Support for Teachers | AL11: =IF('Balance Tradeoffs- Years 1 to 5'!$AH28="Yes",'Balance Tradeoffs- Years 1 to 5'!M28,"") -> Outside provider to redo schedules | AM11: =IFERROR(IF('Balance Tradeoffs- Years 1 to 5'!$AH28="Yes",'Balance Tradeoffs- Years 1 to 5'!N28,"")*-1,"") -> -1000000 | AN11: =IFERROR(IF('Balance Tradeoffs- Years 1 to 5'!$AH28="Yes",'Balance Tradeoffs- Years 1 to 5'!O28,"")*-1,"") -> 0 | AO11: =IFERROR(IF('Balance Tradeoffs- Years 1 to 5'!$AH28="Yes",'Balance Tradeoffs- Years 1 to 5'!P28,"")*-1,"") -> 0 | AP11: =IFERROR(IF('Balance Tradeoffs- Years 1 to 5'!$AH28="Yes",'Balance Tradeoffs- Years 1 to 5'!Q28,"")*-1,"") -> 0 | AQ11: =IFERROR(IF('Balance Tradeoffs- Years 1 to 5'!$AH28="Yes",'Balance Tradeoffs- Years 1 to 5'!R28,"")*-1,"") -> 0 | AR11: =IFERROR(IF('Balance Tradeoffs- Years 1 to 5'!$AH28="Yes",'Balance Tradeoffs- Years 1 to 5'!S28,"")*-1,"") -> -1000000
D12: ='Balance Tradeoffs- Years 1 to 5'!V10 -> Total Investments | E12: ='Balance Tradeoffs- Years 1 to 5'!AA10*-1 -> -8000000 | F12: ='Balance Tradeoffs- Years 1 to 5'!AB10*-1 -> -13000000 | G12: ='Balance Tradeoffs- Years 1 to 5'!AC10*-1 -> -17000000 | H12: ='Balance Tradeoffs- Years 1 to 5'!AD10*-1 -> -17000000 | I12: ='Balance Tradeoffs- Years 1 to 5'!AE10*-1 -> -17000000 | J12: ='Balance Tradeoffs- Years 1 to 5'!AF10*-1 -> -72000000 | P12: Total Investments | Q12: -8000000 | R12: -13000000 | S12: -17000000 | T12: -17000000 | U12: -17000000 | V12: -72000000 | W12: 0 | AB12: Total Investments | AC12: -8000000 | AD12: -13000000 | AE12: -17000000 | AF12: -17000000 | AG12: -17000000 | AK12: =IF('Balance Tradeoffs- Years 1 to 5'!$AH29="Yes",'Balance Tradeoffs- Years 1 to 5'!L29,"") ->  | AL12: =IF('Balance Tradeoffs- Years 1 to 5'!$AH29="Yes",'Balance Tradeoffs- Years 1 to 5'!M29,"") ->  | AM12: =IFERROR(IF('Balance Tradeoffs- Years 1 to 5'!$AH29="Yes",'Balance Tradeoffs- Years 1 to 5'!N29,"")*-1,"") ->  | AN12: =IFERROR(IF('Balance Tradeoffs- Years 1 to 5'!$AH29="Yes",'Balance Tradeoffs- Years 1 to 5'!O29,"")*-1,"") ->  | AO12: =IFERROR(IF('Balance Tradeoffs- Years 1 to 5'!$AH29="Yes",'Balance Tradeoffs- Years 1 to 5'!P29,"")*-1,"") ->  | AP12: =IFERROR(IF('Balance Tradeoffs- Years 1 to 5'!$AH29="Yes",'Balance Tradeoffs- Years 1 to 5'!Q29,"")*-1,"") ->  | AQ12: =IFERROR(IF('Balance Tradeoffs- Years 1 to 5'!$AH29="Yes",'Balance Tradeoffs- Years 1 to 5'!R29,"")*-1,"") ->  | AR12: =IFERROR(IF('Balance Tradeoffs- Years 1 to 5'!$AH29="Yes",'Balance Tradeoffs- Years 1 to 5'!S29,"")*-1,"") -> 
D13: ='Balance Tradeoffs- Years 1 to 5'!V11 -> Total Cost Savings | E13: ='Balance Tradeoffs- Years 1 to 5'!AA11 -> 15000000 | F13: ='Balance Tradeoffs- Years 1 to 5'!AB11 -> 18000000 | G13: ='Balance Tradeoffs- Years 1 to 5'!AC11 -> 30500000 | H13: ='Balance Tradeoffs- Years 1 to 5'!AD11 -> 30500000 | I13: ='Balance Tradeoffs- Years 1 to 5'!AE11 -> 38000000 | J13: ='Balance Tradeoffs- Years 1 to 5'!AF11 -> 132000000 | P13: Total Cost Savings | Q13: 15000000 | R13: 18000000 | S13: 30500000 | T13: 30500000 | U13: 38000000 | V13: 132000000 | W13: 0 | AB13: Total Cost Savings | AC13: 15000000 | AD13: 18000000 | AE13: 30500000 | AF13: 30500000 | AG13: 38000000 | AK13: =IF('Balance Tradeoffs- Years 1 to 5'!$AH30="Yes",'Balance Tradeoffs- Years 1 to 5'!L30,"") ->  | AL13: =IF('Balance Tradeoffs- Years 1 to 5'!$AH30="Yes",'Balance Tradeoffs- Years 1 to 5'!M30,"") ->  | AM13: =IFERROR(IF('Balance Tradeoffs- Years 1 to 5'!$AH30="Yes",'Balance Tradeoffs- Years 1 to 5'!N30,"")*-1,"") ->  | AN13: =IFERROR(IF('Balance Tradeoffs- Years 1 to 5'!$AH30="Yes",'Balance Tradeoffs- Years 1 to 5'!O30,"")*-1,"") ->  | AO13: =IFERROR(IF('Balance Tradeoffs- Years 1 to 5'!$AH30="Yes",'Balance Tradeoffs- Years 1 to 5'!P30,"")*-1,"") ->  | AP13: =IFERROR(IF('Balance Tradeoffs- Years 1 to 5'!$AH30="Yes",'Balance Tradeoffs- Years 1 to 5'!Q30,"")*-1,"") ->  | AQ13: =IFERROR(IF('Balance Tradeoffs- Years 1 to 5'!$AH30="Yes",'Balance Tradeoffs- Years 1 to 5'!R30,"")*-1,"") ->  | AR13: =IFERROR(IF('Balance Tradeoffs- Years 1 to 5'!$AH30="Yes",'Balance Tradeoffs- Years 1 to 5'!S30,"")*-1,"") -> 
D14: ='Balance Tradeoffs- Years 1 to 5'!V12 -> Projected Revenue | E14: ='Balance Tradeoffs- Years 1 to 5'!AA12 -> 500000000 | F14: ='Balance Tradeoffs- Years 1 to 5'!AB12 -> 500000000 | G14: ='Balance Tradeoffs- Years 1 to 5'!AC12 -> 500000000 | H14: ='Balance Tradeoffs- Years 1 to 5'!AD12 -> 500000000 | I14: ='Balance Tradeoffs- Years 1 to 5'!AE12 -> 500000000 | J14: ='Balance Tradeoffs- Years 1 to 5'!AF12 -> 2500000000 | P14: =D16 -> New Budget Balance | Q14: -3000000 | R14: -5000000 | S14: 3500000 | T14: -6500000 | U14: 1000000 | V14: -10000000 | W14: 0 | AB14: New Budget Balance | AC14: -3000000 | AD14: -5000000 | AE14: 3500000 | AF14: -6500000 | AG14: 1000000 | AK14: =IF('Balance Tradeoffs- Years 1 to 5'!$AH31="Yes",'Balance Tradeoffs- Years 1 to 5'!L31,"") ->  | AL14: =IF('Balance Tradeoffs- Years 1 to 5'!$AH31="Yes",'Balance Tradeoffs- Years 1 to 5'!M31,"") ->  | AM14: =IFERROR(IF('Balance Tradeoffs- Years 1 to 5'!$AH31="Yes",'Balance Tradeoffs- Years 1 to 5'!N31,"")*-1,"") ->  | AN14: =IFERROR(IF('Balance Tradeoffs- Years 1 to 5'!$AH31="Yes",'Balance Tradeoffs- Years 1 to 5'!O31,"")*-1,"") ->  | AO14: =IFERROR(IF('Balance Tradeoffs- Years 1 to 5'!$AH31="Yes",'Balance Tradeoffs- Years 1 to 5'!P31,"")*-1,"") ->  | AP14: =IFERROR(IF('Balance Tradeoffs- Years 1 to 5'!$AH31="Yes",'Balance Tradeoffs- Years 1 to 5'!Q31,"")*-1,"") ->  | AQ14: =IFERROR(IF('Balance Tradeoffs- Years 1 to 5'!$AH31="Yes",'Balance Tradeoffs- Years 1 to 5'!R31,"")*-1,"") ->  | AR14: =IFERROR(IF('Balance Tradeoffs- Years 1 to 5'!$AH31="Yes",'Balance Tradeoffs- Years 1 to 5'!S31,"")*-1,"") -> 
D15: ='Balance Tradeoffs- Years 1 to 5'!V13 -> (Revised) Projected Expenses | E15: ='Balance Tradeoffs- Years 1 to 5'!AA13*-1 -> -503000000 | F15: ='Balance Tradeoffs- Years 1 to 5'!AB13*-1 -> -505000000 | G15: ='Balance Tradeoffs- Years 1 to 5'!AC13*-1 -> -496500000 | H15: ='Balance Tradeoffs- Years 1 to 5'!AD13*-1 -> -506500000 | I15: ='Balance Tradeoffs- Years 1 to 5'!AE13*-1 -> -499000000 | J15: ='Balance Tradeoffs- Years 1 to 5'!AF13 -> 2485000000 | P15: 0 | Q15: 0 | R15: 0 | S15: 0 | T15: 0 | U15: 0 | V15: 0 | W15: 0 | AB15: 0 | AC15: 0 | AD15: 0 | AE15: 0 | AF15: 0 | AG15: 0 | AK15: =IF('Balance Tradeoffs- Years 1 to 5'!$AH32="Yes",'Balance Tradeoffs- Years 1 to 5'!L32,"") ->  | AL15: =IF('Balance Tradeoffs- Years 1 to 5'!$AH32="Yes",'Balance Tradeoffs- Years 1 to 5'!M32,"") ->  | AM15: =IFERROR(IF('Balance Tradeoffs- Years 1 to 5'!$AH32="Yes",'Balance Tradeoffs- Years 1 to 5'!N32,"")*-1,"") ->  | AN15: =IFERROR(IF('Balance Tradeoffs- Years 1 to 5'!$AH32="Yes",'Balance Tradeoffs- Years 1 to 5'!O32,"")*-1,"") ->  | AO15: =IFERROR(IF('Balance Tradeoffs- Years 1 to 5'!$AH32="Yes",'Balance Tradeoffs- Years 1 to 5'!P32,"")*-1,"") ->  | AP15: =IFERROR(IF('Balance Tradeoffs- Years 1 to 5'!$AH32="Yes",'Balance Tradeoffs- Years 1 to 5'!Q32,"")*-1,"") ->  | AQ15: =IFERROR(IF('Balance Tradeoffs- Years 1 to 5'!$AH32="Yes",'Balance Tradeoffs- Years 1 to 5'!R32,"")*-1,"") ->  | AR15: =IFERROR(IF('Balance Tradeoffs- Years 1 to 5'!$AH32="Yes",'Balance Tradeoffs- Years 1 to 5'!S32,"")*-1,"") -> 
D16: ='Balance Tradeoffs- Years 1 to 5'!V14 -> New Budget Balance | E16: ='Balance Tradeoffs- Years 1 to 5'!AA14 -> -3000000 | F16: ='Balance Tradeoffs- Years 1 to 5'!AB14 -> -5000000 | G16: ='Balance Tradeoffs- Years 1 to 5'!AC14 -> 3500000 | H16: ='Balance Tradeoffs- Years 1 to 5'!AD14 -> -6500000 | I16: ='Balance Tradeoffs- Years 1 to 5'!AE14 -> 1000000 | J16: ='Balance Tradeoffs- Years 1 to 5'!AF14 -> -10000000 | P16: Total Dollars Moved | Q16: 23000000 | R16: 31000000 | S16: 47500000 | T16: 47500000 | U16: 55000000 | V16: 204000000 | W16: 0 | AB16: Total Dollars Moved | AC16: 23000000 | AD16: 31000000 | AE16: 47500000 | AF16: 47500000 | AG16: 55000000 | AK16: =IF('Balance Tradeoffs- Years 1 to 5'!$AH33="Yes",'Balance Tradeoffs- Years 1 to 5'!L33,"") ->  | AL16: =IF('Balance Tradeoffs- Years 1 to 5'!$AH33="Yes",'Balance Tradeoffs- Years 1 to 5'!M33,"") ->  | AM16: =IFERROR(IF('Balance Tradeoffs- Years 1 to 5'!$AH33="Yes",'Balance Tradeoffs- Years 1 to 5'!N33,"")*-1,"") ->  | AN16: =IFERROR(IF('Balance Tradeoffs- Years 1 to 5'!$AH33="Yes",'Balance Tradeoffs- Years 1 to 5'!O33,"")*-1,"") ->  | AO16: =IFERROR(IF('Balance Tradeoffs- Years 1 to 5'!$AH33="Yes",'Balance Tradeoffs- Years 1 to 5'!P33,"")*-1,"") ->  | AP16: =IFERROR(IF('Balance Tradeoffs- Years 1 to 5'!$AH33="Yes",'Balance Tradeoffs- Years 1 to 5'!Q33,"")*-1,"") ->  | AQ16: =IFERROR(IF('Balance Tradeoffs- Years 1 to 5'!$AH33="Yes",'Balance Tradeoffs- Years 1 to 5'!R33,"")*-1,"") ->  | AR16: =IFERROR(IF('Balance Tradeoffs- Years 1 to 5'!$AH33="Yes",'Balance Tradeoffs- Years 1 to 5'!S33,"")*-1,"") -> 
P17: % of Budget Affected | Q17: 0.046 | R17: 0.062 | S17: 0.095 | T17: 0.095 | U17: 0.11 | V17: 0.0816 | W17: 0 | AB17: % of Budget Affected | AC17: 0.046 | AD17: 0.062 | AE17: 0.095 | AF17: 0.095 | AG17: 0.11 | AK17: =IF('Balance Tradeoffs- Years 1 to 5'!$AH34="Yes",'Balance Tradeoffs- Years 1 to 5'!L34,"") ->  | AL17: =IF('Balance Tradeoffs- Years 1 to 5'!$AH34="Yes",'Balance Tradeoffs- Years 1 to 5'!M34,"") ->  | AM17: =IFERROR(IF('Balance Tradeoffs- Years 1 to 5'!$AH34="Yes",'Balance Tradeoffs- Years 1 to 5'!N34,"")*-1,"") ->  | AN17: =IFERROR(IF('Balance Tradeoffs- Years 1 to 5'!$AH34="Yes",'Balance Tradeoffs- Years 1 to 5'!O34,"")*-1,"") ->  | AO17: =IFERROR(IF('Balance Tradeoffs- Years 1 to 5'!$AH34="Yes",'Balance Tradeoffs- Years 1 to 5'!P34,"")*-1,"") ->  | AP17: =IFERROR(IF('Balance Tradeoffs- Years 1 to 5'!$AH34="Yes",'Balance Tradeoffs- Years 1 to 5'!Q34,"")*-1,"") ->  | AQ17: =IFERROR(IF('Balance Tradeoffs- Years 1 to 5'!$AH34="Yes",'Balance Tradeoffs- Years 1 to 5'!R34,"")*-1,"") ->  | AR17: =IFERROR(IF('Balance Tradeoffs- Years 1 to 5'!$AH34="Yes",'Balance Tradeoffs- Years 1 to 5'!S34,"")*-1,"") -> 
D18: ='Balance Tradeoffs- Years 1 to 5'!V16 -> Total Dollars Moved | E18: ='Balance Tradeoffs- Years 1 to 5'!AA16 -> 23000000 | F18: ='Balance Tradeoffs- Years 1 to 5'!AB16 -> 31000000 | G18: ='Balance Tradeoffs- Years 1 to 5'!AC16 -> 47500000 | H18: ='Balance Tradeoffs- Years 1 to 5'!AD16 -> 47500000 | I18: ='Balance Tradeoffs- Years 1 to 5'!AE16 -> 55000000 | J18: ='Balance Tradeoffs- Years 1 to 5'!AF16 -> 204000000 | AK18: =IF('Balance Tradeoffs- Years 1 to 5'!$AH35="Yes",'Balance Tradeoffs- Years 1 to 5'!L35,"") ->  | AL18: =IF('Balance Tradeoffs- Years 1 to 5'!$AH35="Yes",'Balance Tradeoffs- Years 1 to 5'!M35,"") ->  | AM18: =IFERROR(IF('Balance Tradeoffs- Years 1 to 5'!$AH35="Yes",'Balance Tradeoffs- Years 1 to 5'!N35,"")*-1,"") ->  | AN18: =IFERROR(IF('Balance Tradeoffs- Years 1 to 5'!$AH35="Yes",'Balance Tradeoffs- Years 1 to 5'!O35,"")*-1,"") ->  | AO18: =IFERROR(IF('Balance Tradeoffs- Years 1 to 5'!$AH35="Yes",'Balance Tradeoffs- Years 1 to 5'!P35,"")*-1,"") ->  | AP18: =IFERROR(IF('Balance Tradeoffs- Years 1 to 5'!$AH35="Yes",'Balance Tradeoffs- Years 1 to 5'!Q35,"")*-1,"") ->  | AQ18: =IFERROR(IF('Balance Tradeoffs- Years 1 to 5'!$AH35="Yes",'Balance Tradeoffs- Years 1 to 5'!R35,"")*-1,"") ->  | AR18: =IFERROR(IF('Balance Tradeoffs- Years 1 to 5'!$AH35="Yes",'Balance Tradeoffs- Years 1 to 5'!S35,"")*-1,"") -> 
D19: ='Balance Tradeoffs- Years 1 to 5'!V17 -> % of Budget Affected | E19: ='Balance Tradeoffs- Years 1 to 5'!AA17 -> 0.046 | F19: ='Balance Tradeoffs- Years 1 to 5'!AB17 -> 0.062 | G19: ='Balance Tradeoffs- Years 1 to 5'!AC17 -> 0.095 | H19: ='Balance Tradeoffs- Years 1 to 5'!AD17 -> 0.095 | I19: ='Balance Tradeoffs- Years 1 to 5'!AE17 -> 0.11 | J19: ='Balance Tradeoffs- Years 1 to 5'!AF17 -> 0.0816 | AK19: =IF('Balance Tradeoffs- Years 1 to 5'!$AH36="Yes",'Balance Tradeoffs- Years 1 to 5'!L36,"") ->  | AL19: =IF('Balance Tradeoffs- Years 1 to 5'!$AH36="Yes",'Balance Tradeoffs- Years 1 to 5'!M36,"") ->  | AM19: =IFERROR(IF('Balance Tradeoffs- Years 1 to 5'!$AH36="Yes",'Balance Tradeoffs- Years 1 to 5'!N36,"")*-1,"") ->  | AN19: =IFERROR(IF('Balance Tradeoffs- Years 1 to 5'!$AH36="Yes",'Balance Tradeoffs- Years 1 to 5'!O36,"")*-1,"") ->  | AO19: =IFERROR(IF('Balance Tradeoffs- Years 1 to 5'!$AH36="Yes",'Balance Tradeoffs- Years 1 to 5'!P36,"")*-1,"") ->  | AP19: =IFERROR(IF('Balance Tradeoffs- Years 1 to 5'!$AH36="Yes",'Balance Tradeoffs- Years 1 to 5'!Q36,"")*-1,"") ->  | AQ19: =IFERROR(IF('Balance Tradeoffs- Years 1 to 5'!$AH36="Yes",'Balance Tradeoffs- Years 1 to 5'!R36,"")*-1,"") ->  | AR19: =IFERROR(IF('Balance Tradeoffs- Years 1 to 5'!$AH36="Yes",'Balance Tradeoffs- Years 1 to 5'!S36,"")*-1,"") -> 
AK20: =IF('Balance Tradeoffs- Years 1 to 5'!$AH37="Yes",'Balance Tradeoffs- Years 1 to 5'!L37,"") ->  | AL20: =IF('Balance Tradeoffs- Years 1 to 5'!$AH37="Yes",'Balance Tradeoffs- Years 1 to 5'!M37,"") ->  | AM20: =IFERROR(IF('Balance Tradeoffs- Years 1 to 5'!$AH37="Yes",'Balance Tradeoffs- Years 1 to 5'!N37,"")*-1,"") ->  | AN20: =IFERROR(IF('Balance Tradeoffs- Years 1 to 5'!$AH37="Yes",'Balance Tradeoffs- Years 1 to 5'!O37,"")*-1,"") ->  | AO20: =IFERROR(IF('Balance Tradeoffs- Years 1 to 5'!$AH37="Yes",'Balance Tradeoffs- Years 1 to 5'!P37,"")*-1,"") ->  | AP20: =IFERROR(IF('Balance Tradeoffs- Years 1 to 5'!$AH37="Yes",'Balance Tradeoffs- Years 1 to 5'!Q37,"")*-1,"") ->  | AQ20: =IFERROR(IF('Balance Tradeoffs- Years 1 to 5'!$AH37="Yes",'Balance Tradeoffs- Years 1 to 5'!R37,"")*-1,"") ->  | AR20: =IFERROR(IF('Balance Tradeoffs- Years 1 to 5'!$AH37="Yes",'Balance Tradeoffs- Years 1 to 5'!S37,"")*-1,"") -> 
AK21: =IF('Balance Tradeoffs- Years 1 to 5'!$AH38="Yes",'Balance Tradeoffs- Years 1 to 5'!L38,"") ->  | AL21: =IF('Balance Tradeoffs- Years 1 to 5'!$AH38="Yes",'Balance Tradeoffs- Years 1 to 5'!M38,"") ->  | AM21: =IFERROR(IF('Balance Tradeoffs- Years 1 to 5'!$AH38="Yes",'Balance Tradeoffs- Years 1 to 5'!N38,"")*-1,"") ->  | AN21: =IFERROR(IF('Balance Tradeoffs- Years 1 to 5'!$AH38="Yes",'Balance Tradeoffs- Years 1 to 5'!O38,"")*-1,"") ->  | AO21: =IFERROR(IF('Balance Tradeoffs- Years 1 to 5'!$AH38="Yes",'Balance Tradeoffs- Years 1 to 5'!P38,"")*-1,"") ->  | AP21: =IFERROR(IF('Balance Tradeoffs- Years 1 to 5'!$AH38="Yes",'Balance Tradeoffs- Years 1 to 5'!Q38,"")*-1,"") ->  | AQ21: =IFERROR(IF('Balance Tradeoffs- Years 1 to 5'!$AH38="Yes",'Balance Tradeoffs- Years 1 to 5'!R38,"")*-1,"") ->  | AR21: =IFERROR(IF('Balance Tradeoffs- Years 1 to 5'!$AH38="Yes",'Balance Tradeoffs- Years 1 to 5'!S38,"")*-1,"") -> 
AK22: =IF('Balance Tradeoffs- Years 1 to 5'!$AH39="Yes",'Balance Tradeoffs- Years 1 to 5'!L39,"") ->  | AL22: =IF('Balance Tradeoffs- Years 1 to 5'!$AH39="Yes",'Balance Tradeoffs- Years 1 to 5'!M39,"") ->  | AM22: =IFERROR(IF('Balance Tradeoffs- Years 1 to 5'!$AH39="Yes",'Balance Tradeoffs- Years 1 to 5'!N39,"")*-1,"") ->  | AN22: =IFERROR(IF('Balance Tradeoffs- Years 1 to 5'!$AH39="Yes",'Balance Tradeoffs- Years 1 to 5'!O39,"")*-1,"") ->  | AO22: =IFERROR(IF('Balance Tradeoffs- Years 1 to 5'!$AH39="Yes",'Balance Tradeoffs- Years 1 to 5'!P39,"")*-1,"") ->  | AP22: =IFERROR(IF('Balance Tradeoffs- Years 1 to 5'!$AH39="Yes",'Balance Tradeoffs- Years 1 to 5'!Q39,"")*-1,"") ->  | AQ22: =IFERROR(IF('Balance Tradeoffs- Years 1 to 5'!$AH39="Yes",'Balance Tradeoffs- Years 1 to 5'!R39,"")*-1,"") ->  | AR22: =IFERROR(IF('Balance Tradeoffs- Years 1 to 5'!$AH39="Yes",'Balance Tradeoffs- Years 1 to 5'!S39,"")*-1,"") -> 
AK23: =IF('Balance Tradeoffs- Years 1 to 5'!$AH40="Yes",'Balance Tradeoffs- Years 1 to 5'!L40,"") ->  | AL23: =IF('Balance Tradeoffs- Years 1 to 5'!$AH40="Yes",'Balance Tradeoffs- Years 1 to 5'!M40,"") ->  | AM23: =IFERROR(IF('Balance Tradeoffs- Years 1 to 5'!$AH40="Yes",'Balance Tradeoffs- Years 1 to 5'!N40,"")*-1,"") ->  | AN23: =IFERROR(IF('Balance Tradeoffs- Years 1 to 5'!$AH40="Yes",'Balance Tradeoffs- Years 1 to 5'!O40,"")*-1,"") ->  | AO23: =IFERROR(IF('Balance Tradeoffs- Years 1 to 5'!$AH40="Yes",'Balance Tradeoffs- Years 1 to 5'!P40,"")*-1,"") ->  | AP23: =IFERROR(IF('Balance Tradeoffs- Years 1 to 5'!$AH40="Yes",'Balance Tradeoffs- Years 1 to 5'!Q40,"")*-1,"") ->  | AQ23: =IFERROR(IF('Balance Tradeoffs- Years 1 to 5'!$AH40="Yes",'Balance Tradeoffs- Years 1 to 5'!R40,"")*-1,"") ->  | AR23: =IFERROR(IF('Balance Tradeoffs- Years 1 to 5'!$AH40="Yes",'Balance Tradeoffs- Years 1 to 5'!S40,"")*-1,"") -> 
AK24: =IF('Balance Tradeoffs- Years 1 to 5'!$AH41="Yes",'Balance Tradeoffs- Years 1 to 5'!L41,"") ->  | AL24: =IF('Balance Tradeoffs- Years 1 to 5'!$AH41="Yes",'Balance Tradeoffs- Years 1 to 5'!M41,"") ->  | AM24: =IFERROR(IF('Balance Tradeoffs- Years 1 to 5'!$AH41="Yes",'Balance Tradeoffs- Years 1 to 5'!N41,"")*-1,"") ->  | AN24: =IFERROR(IF('Balance Tradeoffs- Years 1 to 5'!$AH41="Yes",'Balance Tradeoffs- Years 1 to 5'!O41,"")*-1,"") ->  | AO24: =IFERROR(IF('Balance Tradeoffs- Years 1 to 5'!$AH41="Yes",'Balance Tradeoffs- Years 1 to 5'!P41,"")*-1,"") ->  | AP24: =IFERROR(IF('Balance Tradeoffs- Years 1 to 5'!$AH41="Yes",'Balance Tradeoffs- Years 1 to 5'!Q41,"")*-1,"") ->  | AQ24: =IFERROR(IF('Balance Tradeoffs- Years 1 to 5'!$AH41="Yes",'Balance Tradeoffs- Years 1 to 5'!R41,"")*-1,"") ->  | AR24: =IFERROR(IF('Balance Tradeoffs- Years 1 to 5'!$AH41="Yes",'Balance Tradeoffs- Years 1 to 5'!S41,"")*-1,"") -> 
AK25: =IF('Balance Tradeoffs- Years 1 to 5'!$AH42="Yes",'Balance Tradeoffs- Years 1 to 5'!L42,"") ->  | AL25: =IF('Balance Tradeoffs- Years 1 to 5'!$AH42="Yes",'Balance Tradeoffs- Years 1 to 5'!M42,"") ->  | AM25: =IFERROR(IF('Balance Tradeoffs- Years 1 to 5'!$AH42="Yes",'Balance Tradeoffs- Years 1 to 5'!N42,"")*-1,"") ->  | AN25: =IFERROR(IF('Balance Tradeoffs- Years 1 to 5'!$AH42="Yes",'Balance Tradeoffs- Years 1 to 5'!O42,"")*-1,"") ->  | AO25: =IFERROR(IF('Balance Tradeoffs- Years 1 to 5'!$AH42="Yes",'Balance Tradeoffs- Years 1 to 5'!P42,"")*-1,"") ->  | AP25: =IFERROR(IF('Balance Tradeoffs- Years 1 to 5'!$AH42="Yes",'Balance Tradeoffs- Years 1 to 5'!Q42,"")*-1,"") ->  | AQ25: =IFERROR(IF('Balance Tradeoffs- Years 1 to 5'!$AH42="Yes",'Balance Tradeoffs- Years 1 to 5'!R42,"")*-1,"") ->  | AR25: =IFERROR(IF('Balance Tradeoffs- Years 1 to 5'!$AH42="Yes",'Balance Tradeoffs- Years 1 to 5'!S42,"")*-1,"") -> 
AK26: =IF('Balance Tradeoffs- Years 1 to 5'!$AH43="Yes",'Balance Tradeoffs- Years 1 to 5'!L43,"") ->  | AL26: =IF('Balance Tradeoffs- Years 1 to 5'!$AH43="Yes",'Balance Tradeoffs- Years 1 to 5'!M43,"") ->  | AM26: =IFERROR(IF('Balance Tradeoffs- Years 1 to 5'!$AH43="Yes",'Balance Tradeoffs- Years 1 to 5'!N43,"")*-1,"") ->  | AN26: =IFERROR(IF('Balance Tradeoffs- Years 1 to 5'!$AH43="Yes",'Balance Tradeoffs- Years 1 to 5'!O43,"")*-1,"") ->  | AO26: =IFERROR(IF('Balance Tradeoffs- Years 1 to 5'!$AH43="Yes",'Balance Tradeoffs- Years 1 to 5'!P43,"")*-1,"") ->  | AP26: =IFERROR(IF('Balance Tradeoffs- Years 1 to 5'!$AH43="Yes",'Balance Tradeoffs- Years 1 to 5'!Q43,"")*-1,"") ->  | AQ26: =IFERROR(IF('Balance Tradeoffs- Years 1 to 5'!$AH43="Yes",'Balance Tradeoffs- Years 1 to 5'!R43,"")*-1,"") ->  | AR26: =IFERROR(IF('Balance Tradeoffs- Years 1 to 5'!$AH43="Yes",'Balance Tradeoffs- Years 1 to 5'!S43,"")*-1,"") -> 
AK27: SAVINGS
AK28: =IF('Balance Tradeoffs- Years 1 to 5'!$AH50="Yes",'Balance Tradeoffs- Years 1 to 5'!L50,"") -> Central Office | AL28: =IF('Balance Tradeoffs- Years 1 to 5'!$AH50="Yes",'Balance Tradeoffs- Years 1 to 5'!M50,"") -> Central Office | AM28: =IF('Balance Tradeoffs- Years 1 to 5'!$AH50="Yes",'Balance Tradeoffs- Years 1 to 5'!N50,"") -> 10000000 | AN28: =IF('Balance Tradeoffs- Years 1 to 5'!$AH50="Yes",'Balance Tradeoffs- Years 1 to 5'!O50,"") -> 10000000 | AO28: =IF('Balance Tradeoffs- Years 1 to 5'!$AH50="Yes",'Balance Tradeoffs- Years 1 to 5'!P50,"") -> 10000000 | AP28: =IF('Balance Tradeoffs- Years 1 to 5'!$AH50="Yes",'Balance Tradeoffs- Years 1 to 5'!Q50,"") -> 10000000 | AQ28: =IF('Balance Tradeoffs- Years 1 to 5'!$AH50="Yes",'Balance Tradeoffs- Years 1 to 5'!R50,"") -> 10000000 | AR28: =IF('Balance Tradeoffs- Years 1 to 5'!$AH50="Yes",'Balance Tradeoffs- Years 1 to 5'!S50,"") -> 50000000
AK29: =IF('Balance Tradeoffs- Years 1 to 5'!$AH51="Yes",'Balance Tradeoffs- Years 1 to 5'!L51,"") -> PD | AL29: =IF('Balance Tradeoffs- Years 1 to 5'!$AH51="Yes",'Balance Tradeoffs- Years 1 to 5'!M51,"") -> PD | AM29: =IF('Balance Tradeoffs- Years 1 to 5'!$AH51="Yes",'Balance Tradeoffs- Years 1 to 5'!N51,"") -> 5000000 | AN29: =IF('Balance Tradeoffs- Years 1 to 5'!$AH51="Yes",'Balance Tradeoffs- Years 1 to 5'!O51,"") -> 5000000 | AO29: =IF('Balance Tradeoffs- Years 1 to 5'!$AH51="Yes",'Balance Tradeoffs- Years 1 to 5'!P51,"") -> 5000000 | AP29: =IF('Balance Tradeoffs- Years 1 to 5'!$AH51="Yes",'Balance Tradeoffs- Years 1 to 5'!Q51,"") -> 5000000 | AQ29: =IF('Balance Tradeoffs- Years 1 to 5'!$AH51="Yes",'Balance Tradeoffs- Years 1 to 5'!R51,"") -> 5000000 | AR29: =IF('Balance Tradeoffs- Years 1 to 5'!$AH51="Yes",'Balance Tradeoffs- Years 1 to 5'!S51,"") -> 25000000
AK30: =IF('Balance Tradeoffs- Years 1 to 5'!$AH52="Yes",'Balance Tradeoffs- Years 1 to 5'!L52,"") -> Instruction | AL30: =IF('Balance Tradeoffs- Years 1 to 5'!$AH52="Yes",'Balance Tradeoffs- Years 1 to 5'!M52,"") -> Out of District Placements | AM30: =IF('Balance Tradeoffs- Years 1 to 5'!$AH52="Yes",'Balance Tradeoffs- Years 1 to 5'!N52,"") -> 5000000 | AN30: =IF('Balance Tradeoffs- Years 1 to 5'!$AH52="Yes",'Balance Tradeoffs- Years 1 to 5'!O52,"") -> 5000000 | AO30: =IF('Balance Tradeoffs- Years 1 to 5'!$AH52="Yes",'Balance Tradeoffs- Years 1 to 5'!P52,"") -> 5000000 | AP30: =IF('Balance Tradeoffs- Years 1 to 5'!$AH52="Yes",'Balance Tradeoffs- Years 1 to 5'!Q52,"") -> 5000000 | AQ30: =IF('Balance Tradeoffs- Years 1 to 5'!$AH52="Yes",'Balance Tradeoffs- Years 1 to 5'!R52,"") -> 5000000 | AR30: =IF('Balance Tradeoffs- Years 1 to 5'!$AH52="Yes",'Balance Tradeoffs- Years 1 to 5'!S52,"") -> 25000000
AK31: =IF('Balance Tradeoffs- Years 1 to 5'!$AH53="Yes",'Balance Tradeoffs- Years 1 to 5'!L53,"") -> Instruction | AL31: =IF('Balance Tradeoffs- Years 1 to 5'!$AH53="Yes",'Balance Tradeoffs- Years 1 to 5'!M53,"") -> Slight increase in class size through faculty attrition | AM31: =IF('Balance Tradeoffs- Years 1 to 5'!$AH53="Yes",'Balance Tradeoffs- Years 1 to 5'!N53,"") -> 0 | AN31: =IF('Balance Tradeoffs- Years 1 to 5'!$AH53="Yes",'Balance Tradeoffs- Years 1 to 5'!O53,"") -> 0 | AO31: =IF('Balance Tradeoffs- Years 1 to 5'!$AH53="Yes",'Balance Tradeoffs- Years 1 to 5'!P53,"") -> 15000000 | AP31: =IF('Balance Tradeoffs- Years 1 to 5'!$AH53="Yes",'Balance Tradeoffs- Years 1 to 5'!Q53,"") -> 15000000 | AQ31: =IF('Balance Tradeoffs- Years 1 to 5'!$AH53="Yes",'Balance Tradeoffs- Years 1 to 5'!R53,"") -> 15000000 | AR31: =IF('Balance Tradeoffs- Years 1 to 5'!$AH53="Yes",'Balance Tradeoffs- Years 1 to 5'!S53,"") -> 45000000
AK32: =IF('Balance Tradeoffs- Years 1 to 5'!$AH54="Yes",'Balance Tradeoffs- Years 1 to 5'!L54,"") -> Buildings and Maintenance | AL32: =IF('Balance Tradeoffs- Years 1 to 5'!$AH54="Yes",'Balance Tradeoffs- Years 1 to 5'!M54,"") -> Consolidatiion of Lawn Care Services | AM32: =IF('Balance Tradeoffs- Years 1 to 5'!$AH54="Yes",'Balance Tradeoffs- Years 1 to 5'!N54,"") -> 0 | AN32: =IF('Balance Tradeoffs- Years 1 to 5'!$AH54="Yes",'Balance Tradeoffs- Years 1 to 5'!O54,"") -> 3000000 | AO32: =IF('Balance Tradeoffs- Years 1 to 5'!$AH54="Yes",'Balance Tradeoffs- Years 1 to 5'!P54,"") -> 3000000 | AP32: =IF('Balance Tradeoffs- Years 1 to 5'!$AH54="Yes",'Balance Tradeoffs- Years 1 to 5'!Q54,"") -> 3000000 | AQ32: =IF('Balance Tradeoffs- Years 1 to 5'!$AH54="Yes",'Balance Tradeoffs- Years 1 to 5'!R54,"") -> 3000000 | AR32: =IF('Balance Tradeoffs- Years 1 to 5'!$AH54="Yes",'Balance Tradeoffs- Years 1 to 5'!S54,"") -> 12000000
AK33: =IF('Balance Tradeoffs- Years 1 to 5'!$AH55="Yes",'Balance Tradeoffs- Years 1 to 5'!L55,"") ->  | AL33: =IF('Balance Tradeoffs- Years 1 to 5'!$AH55="Yes",'Balance Tradeoffs- Years 1 to 5'!M55,"") ->  | AM33: =IF('Balance Tradeoffs- Years 1 to 5'!$AH55="Yes",'Balance Tradeoffs- Years 1 to 5'!N55,"") ->  | AN33: =IF('Balance Tradeoffs- Years 1 to 5'!$AH55="Yes",'Balance Tradeoffs- Years 1 to 5'!O55,"") ->  | AO33: =IF('Balance Tradeoffs- Years 1 to 5'!$AH55="Yes",'Balance Tradeoffs- Years 1 to 5'!P55,"") ->  | AP33: =IF('Balance Tradeoffs- Years 1 to 5'!$AH55="Yes",'Balance Tradeoffs- Years 1 to 5'!Q55,"") ->  | AQ33: =IF('Balance Tradeoffs- Years 1 to 5'!$AH55="Yes",'Balance Tradeoffs- Years 1 to 5'!R55,"") ->  | AR33: =IF('Balance Tradeoffs- Years 1 to 5'!$AH55="Yes",'Balance Tradeoffs- Years 1 to 5'!S55,"") -> 
AK34: =IF('Balance Tradeoffs- Years 1 to 5'!$AH56="Yes",'Balance Tradeoffs- Years 1 to 5'!L56,"") ->  | AL34: =IF('Balance Tradeoffs- Years 1 to 5'!$AH56="Yes",'Balance Tradeoffs- Years 1 to 5'!M56,"") ->  | AM34: =IF('Balance Tradeoffs- Years 1 to 5'!$AH56="Yes",'Balance Tradeoffs- Years 1 to 5'!N56,"") ->  | AN34: =IF('Balance Tradeoffs- Years 1 to 5'!$AH56="Yes",'Balance Tradeoffs- Years 1 to 5'!O56,"") ->  | AO34: =IF('Balance Tradeoffs- Years 1 to 5'!$AH56="Yes",'Balance Tradeoffs- Years 1 to 5'!P56,"") ->  | AP34: =IF('Balance Tradeoffs- Years 1 to 5'!$AH56="Yes",'Balance Tradeoffs- Years 1 to 5'!Q56,"") ->  | AQ34: =IF('Balance Tradeoffs- Years 1 to 5'!$AH56="Yes",'Balance Tradeoffs- Years 1 to 5'!R56,"") ->  | AR34: =IF('Balance Tradeoffs- Years 1 to 5'!$AH56="Yes",'Balance Tradeoffs- Years 1 to 5'!S56,"") -> 
AK35: =IF('Balance Tradeoffs- Years 1 to 5'!$AH57="Yes",'Balance Tradeoffs- Years 1 to 5'!L57,"") ->  | AL35: =IF('Balance Tradeoffs- Years 1 to 5'!$AH57="Yes",'Balance Tradeoffs- Years 1 to 5'!M57,"") ->  | AM35: =IF('Balance Tradeoffs- Years 1 to 5'!$AH57="Yes",'Balance Tradeoffs- Years 1 to 5'!N57,"") ->  | AN35: =IF('Balance Tradeoffs- Years 1 to 5'!$AH57="Yes",'Balance Tradeoffs- Years 1 to 5'!O57,"") ->  | AO35: =IF('Balance Tradeoffs- Years 1 to 5'!$AH57="Yes",'Balance Tradeoffs- Years 1 to 5'!P57,"") ->  | AP35: =IF('Balance Tradeoffs- Years 1 to 5'!$AH57="Yes",'Balance Tradeoffs- Years 1 to 5'!Q57,"") ->  | AQ35: =IF('Balance Tradeoffs- Years 1 to 5'!$AH57="Yes",'Balance Tradeoffs- Years 1 to 5'!R57,"") ->  | AR35: =IF('Balance Tradeoffs- Years 1 to 5'!$AH57="Yes",'Balance Tradeoffs- Years 1 to 5'!S57,"") -> 
AK36: =IF('Balance Tradeoffs- Years 1 to 5'!$AH58="Yes",'Balance Tradeoffs- Years 1 to 5'!L58,"") ->  | AL36: =IF('Balance Tradeoffs- Years 1 to 5'!$AH58="Yes",'Balance Tradeoffs- Years 1 to 5'!M58,"") ->  | AM36: =IF('Balance Tradeoffs- Years 1 to 5'!$AH58="Yes",'Balance Tradeoffs- Years 1 to 5'!N58,"") ->  | AN36: =IF('Balance Tradeoffs- Years 1 to 5'!$AH58="Yes",'Balance Tradeoffs- Years 1 to 5'!O58,"") ->  | AO36: =IF('Balance Tradeoffs- Years 1 to 5'!$AH58="Yes",'Balance Tradeoffs- Years 1 to 5'!P58,"") ->  | AP36: =IF('Balance Tradeoffs- Years 1 to 5'!$AH58="Yes",'Balance Tradeoffs- Years 1 to 5'!Q58,"") ->  | AQ36: =IF('Balance Tradeoffs- Years 1 to 5'!$AH58="Yes",'Balance Tradeoffs- Years 1 to 5'!R58,"") ->  | AR36: =IF('Balance Tradeoffs- Years 1 to 5'!$AH58="Yes",'Balance Tradeoffs- Years 1 to 5'!S58,"") -> 
AK37: =IF('Balance Tradeoffs- Years 1 to 5'!$AH59="Yes",'Balance Tradeoffs- Years 1 to 5'!L59,"") ->  | AL37: =IF('Balance Tradeoffs- Years 1 to 5'!$AH59="Yes",'Balance Tradeoffs- Years 1 to 5'!M59,"") ->  | AM37: =IF('Balance Tradeoffs- Years 1 to 5'!$AH59="Yes",'Balance Tradeoffs- Years 1 to 5'!N59,"") ->  | AN37: =IF('Balance Tradeoffs- Years 1 to 5'!$AH59="Yes",'Balance Tradeoffs- Years 1 to 5'!O59,"") ->  | AO37: =IF('Balance Tradeoffs- Years 1 to 5'!$AH59="Yes",'Balance Tradeoffs- Years 1 to 5'!P59,"") ->  | AP37: =IF('Balance Tradeoffs- Years 1 to 5'!$AH59="Yes",'Balance Tradeoffs- Years 1 to 5'!Q59,"") ->  | AQ37: =IF('Balance Tradeoffs- Years 1 to 5'!$AH59="Yes",'Balance Tradeoffs- Years 1 to 5'!R59,"") ->  | AR37: =IF('Balance Tradeoffs- Years 1 to 5'!$AH59="Yes",'Balance Tradeoffs- Years 1 to 5'!S59,"") -> 
AK38: =IF('Balance Tradeoffs- Years 1 to 5'!$AH60="Yes",'Balance Tradeoffs- Years 1 to 5'!L60,"") ->  | AL38: =IF('Balance Tradeoffs- Years 1 to 5'!$AH60="Yes",'Balance Tradeoffs- Years 1 to 5'!M60,"") ->  | AM38: =IF('Balance Tradeoffs- Years 1 to 5'!$AH60="Yes",'Balance Tradeoffs- Years 1 to 5'!N60,"") ->  | AN38: =IF('Balance Tradeoffs- Years 1 to 5'!$AH60="Yes",'Balance Tradeoffs- Years 1 to 5'!O60,"") ->  | AO38: =IF('Balance Tradeoffs- Years 1 to 5'!$AH60="Yes",'Balance Tradeoffs- Years 1 to 5'!P60,"") ->  | AP38: =IF('Balance Tradeoffs- Years 1 to 5'!$AH60="Yes",'Balance Tradeoffs- Years 1 to 5'!Q60,"") ->  | AQ38: =IF('Balance Tradeoffs- Years 1 to 5'!$AH60="Yes",'Balance Tradeoffs- Years 1 to 5'!R60,"") ->  | AR38: =IF('Balance Tradeoffs- Years 1 to 5'!$AH60="Yes",'Balance Tradeoffs- Years 1 to 5'!S60,"") -> 
AK39: =IF('Balance Tradeoffs- Years 1 to 5'!$AH61="Yes",'Balance Tradeoffs- Years 1 to 5'!L61,"") ->  | AL39: =IF('Balance Tradeoffs- Years 1 to 5'!$AH61="Yes",'Balance Tradeoffs- Years 1 to 5'!M61,"") ->  | AM39: =IF('Balance Tradeoffs- Years 1 to 5'!$AH61="Yes",'Balance Tradeoffs- Years 1 to 5'!N61,"") ->  | AN39: =IF('Balance Tradeoffs- Years 1 to 5'!$AH61="Yes",'Balance Tradeoffs- Years 1 to 5'!O61,"") ->  | AO39: =IF('Balance Tradeoffs- Years 1 to 5'!$AH61="Yes",'Balance Tradeoffs- Years 1 to 5'!P61,"") ->  | AP39: =IF('Balance Tradeoffs- Years 1 to 5'!$AH61="Yes",'Balance Tradeoffs- Years 1 to 5'!Q61,"") ->  | AQ39: =IF('Balance Tradeoffs- Years 1 to 5'!$AH61="Yes",'Balance Tradeoffs- Years 1 to 5'!R61,"") ->  | AR39: =IF('Balance Tradeoffs- Years 1 to 5'!$AH61="Yes",'Balance Tradeoffs- Years 1 to 5'!S61,"") -> 
AK40: =IF('Balance Tradeoffs- Years 1 to 5'!$AH62="Yes",'Balance Tradeoffs- Years 1 to 5'!L62,"") ->  | AL40: =IF('Balance Tradeoffs- Years 1 to 5'!$AH62="Yes",'Balance Tradeoffs- Years 1 to 5'!M62,"") ->  | AM40: =IF('Balance Tradeoffs- Years 1 to 5'!$AH62="Yes",'Balance Tradeoffs- Years 1 to 5'!N62,"") ->  | AN40: =IF('Balance Tradeoffs- Years 1 to 5'!$AH62="Yes",'Balance Tradeoffs- Years 1 to 5'!O62,"") ->  | AO40: =IF('Balance Tradeoffs- Years 1 to 5'!$AH62="Yes",'Balance Tradeoffs- Years 1 to 5'!P62,"") ->  | AP40: =IF('Balance Tradeoffs- Years 1 to 5'!$AH62="Yes",'Balance Tradeoffs- Years 1 to 5'!Q62,"") ->  | AQ40: =IF('Balance Tradeoffs- Years 1 to 5'!$AH62="Yes",'Balance Tradeoffs- Years 1 to 5'!R62,"") ->  | AR40: =IF('Balance Tradeoffs- Years 1 to 5'!$AH62="Yes",'Balance Tradeoffs- Years 1 to 5'!S62,"") -> 
AK41: =IF('Balance Tradeoffs- Years 1 to 5'!$AH63="Yes",'Balance Tradeoffs- Years 1 to 5'!L63,"") ->  | AL41: =IF('Balance Tradeoffs- Years 1 to 5'!$AH63="Yes",'Balance Tradeoffs- Years 1 to 5'!M63,"") ->  | AM41: =IF('Balance Tradeoffs- Years 1 to 5'!$AH63="Yes",'Balance Tradeoffs- Years 1 to 5'!N63,"") ->  | AN41: =IF('Balance Tradeoffs- Years 1 to 5'!$AH63="Yes",'Balance Tradeoffs- Years 1 to 5'!O63,"") ->  | AO41: =IF('Balance Tradeoffs- Years 1 to 5'!$AH63="Yes",'Balance Tradeoffs- Years 1 to 5'!P63,"") ->  | AP41: =IF('Balance Tradeoffs- Years 1 to 5'!$AH63="Yes",'Balance Tradeoffs- Years 1 to 5'!Q63,"") ->  | AQ41: =IF('Balance Tradeoffs- Years 1 to 5'!$AH63="Yes",'Balance Tradeoffs- Years 1 to 5'!R63,"") ->  | AR41: =IF('Balance Tradeoffs- Years 1 to 5'!$AH63="Yes",'Balance Tradeoffs- Years 1 to 5'!S63,"") -> 
AK42: =IF('Balance Tradeoffs- Years 1 to 5'!$AH64="Yes",'Balance Tradeoffs- Years 1 to 5'!L64,"") ->  | AL42: =IF('Balance Tradeoffs- Years 1 to 5'!$AH64="Yes",'Balance Tradeoffs- Years 1 to 5'!M64,"") ->  | AM42: =IF('Balance Tradeoffs- Years 1 to 5'!$AH64="Yes",'Balance Tradeoffs- Years 1 to 5'!N64,"") ->  | AN42: =IF('Balance Tradeoffs- Years 1 to 5'!$AH64="Yes",'Balance Tradeoffs- Years 1 to 5'!O64,"") ->  | AO42: =IF('Balance Tradeoffs- Years 1 to 5'!$AH64="Yes",'Balance Tradeoffs- Years 1 to 5'!P64,"") ->  | AP42: =IF('Balance Tradeoffs- Years 1 to 5'!$AH64="Yes",'Balance Tradeoffs- Years 1 to 5'!Q64,"") ->  | AQ42: =IF('Balance Tradeoffs- Years 1 to 5'!$AH64="Yes",'Balance Tradeoffs- Years 1 to 5'!R64,"") ->  | AR42: =IF('Balance Tradeoffs- Years 1 to 5'!$AH64="Yes",'Balance Tradeoffs- Years 1 to 5'!S64,"") -> 
AK43: =IF('Balance Tradeoffs- Years 1 to 5'!$AH65="Yes",'Balance Tradeoffs- Years 1 to 5'!L65,"") ->  | AL43: =IF('Balance Tradeoffs- Years 1 to 5'!$AH65="Yes",'Balance Tradeoffs- Years 1 to 5'!M65,"") ->  | AM43: =IF('Balance Tradeoffs- Years 1 to 5'!$AH65="Yes",'Balance Tradeoffs- Years 1 to 5'!N65,"") ->  | AN43: =IF('Balance Tradeoffs- Years 1 to 5'!$AH65="Yes",'Balance Tradeoffs- Years 1 to 5'!O65,"") ->  | AO43: =IF('Balance Tradeoffs- Years 1 to 5'!$AH65="Yes",'Balance Tradeoffs- Years 1 to 5'!P65,"") ->  | AP43: =IF('Balance Tradeoffs- Years 1 to 5'!$AH65="Yes",'Balance Tradeoffs- Years 1 to 5'!Q65,"") ->  | AQ43: =IF('Balance Tradeoffs- Years 1 to 5'!$AH65="Yes",'Balance Tradeoffs- Years 1 to 5'!R65,"") ->  | AR43: =IF('Balance Tradeoffs- Years 1 to 5'!$AH65="Yes",'Balance Tradeoffs- Years 1 to 5'!S65,"") -> 
AK44: =IF('Balance Tradeoffs- Years 1 to 5'!$AH66="Yes",'Balance Tradeoffs- Years 1 to 5'!L66,"") ->  | AL44: =IF('Balance Tradeoffs- Years 1 to 5'!$AH66="Yes",'Balance Tradeoffs- Years 1 to 5'!M66,"") ->  | AM44: =IF('Balance Tradeoffs- Years 1 to 5'!$AH66="Yes",'Balance Tradeoffs- Years 1 to 5'!N66,"") ->  | AN44: =IF('Balance Tradeoffs- Years 1 to 5'!$AH66="Yes",'Balance Tradeoffs- Years 1 to 5'!O66,"") ->  | AO44: =IF('Balance Tradeoffs- Years 1 to 5'!$AH66="Yes",'Balance Tradeoffs- Years 1 to 5'!P66,"") ->  | AP44: =IF('Balance Tradeoffs- Years 1 to 5'!$AH66="Yes",'Balance Tradeoffs- Years 1 to 5'!Q66,"") ->  | AQ44: =IF('Balance Tradeoffs- Years 1 to 5'!$AH66="Yes",'Balance Tradeoffs- Years 1 to 5'!R66,"") ->  | AR44: =IF('Balance Tradeoffs- Years 1 to 5'!$AH66="Yes",'Balance Tradeoffs- Years 1 to 5'!S66,"") -> 
AK45: =IF('Balance Tradeoffs- Years 1 to 5'!$AH67="Yes",'Balance Tradeoffs- Years 1 to 5'!L67,"") ->  | AL45: =IF('Balance Tradeoffs- Years 1 to 5'!$AH67="Yes",'Balance Tradeoffs- Years 1 to 5'!M67,"") ->  | AM45: =IF('Balance Tradeoffs- Years 1 to 5'!$AH67="Yes",'Balance Tradeoffs- Years 1 to 5'!N67,"") ->  | AN45: =IF('Balance Tradeoffs- Years 1 to 5'!$AH67="Yes",'Balance Tradeoffs- Years 1 to 5'!O67,"") ->  | AO45: =IF('Balance Tradeoffs- Years 1 to 5'!$AH67="Yes",'Balance Tradeoffs- Years 1 to 5'!P67,"") ->  | AP45: =IF('Balance Tradeoffs- Years 1 to 5'!$AH67="Yes",'Balance Tradeoffs- Years 1 to 5'!Q67,"") ->  | AQ45: =IF('Balance Tradeoffs- Years 1 to 5'!$AH67="Yes",'Balance Tradeoffs- Years 1 to 5'!R67,"") ->  | AR45: =IF('Balance Tradeoffs- Years 1 to 5'!$AH67="Yes",'Balance Tradeoffs- Years 1 to 5'!S67,"") -> 
AK46: =IF('Balance Tradeoffs- Years 1 to 5'!$AH68="Yes",'Balance Tradeoffs- Years 1 to 5'!L68,"") ->  | AL46: =IF('Balance Tradeoffs- Years 1 to 5'!$AH68="Yes",'Balance Tradeoffs- Years 1 to 5'!M68,"") ->  | AM46: =IF('Balance Tradeoffs- Years 1 to 5'!$AH68="Yes",'Balance Tradeoffs- Years 1 to 5'!N68,"") ->  | AN46: =IF('Balance Tradeoffs- Years 1 to 5'!$AH68="Yes",'Balance Tradeoffs- Years 1 to 5'!O68,"") ->  | AO46: =IF('Balance Tradeoffs- Years 1 to 5'!$AH68="Yes",'Balance Tradeoffs- Years 1 to 5'!P68,"") ->  | AP46: =IF('Balance Tradeoffs- Years 1 to 5'!$AH68="Yes",'Balance Tradeoffs- Years 1 to 5'!Q68,"") ->  | AQ46: =IF('Balance Tradeoffs- Years 1 to 5'!$AH68="Yes",'Balance Tradeoffs- Years 1 to 5'!R68,"") ->  | AR46: =IF('Balance Tradeoffs- Years 1 to 5'!$AH68="Yes",'Balance Tradeoffs- Years 1 to 5'!S68,"") -> 
AK47: =IF('Balance Tradeoffs- Years 1 to 5'!$AH69="Yes",'Balance Tradeoffs- Years 1 to 5'!L69,"") ->  | AL47: =IF('Balance Tradeoffs- Years 1 to 5'!$AH69="Yes",'Balance Tradeoffs- Years 1 to 5'!M69,"") ->  | AM47: =IF('Balance Tradeoffs- Years 1 to 5'!$AH69="Yes",'Balance Tradeoffs- Years 1 to 5'!N69,"") ->  | AN47: =IF('Balance Tradeoffs- Years 1 to 5'!$AH69="Yes",'Balance Tradeoffs- Years 1 to 5'!O69,"") ->  | AO47: =IF('Balance Tradeoffs- Years 1 to 5'!$AH69="Yes",'Balance Tradeoffs- Years 1 to 5'!P69,"") ->  | AP47: =IF('Balance Tradeoffs- Years 1 to 5'!$AH69="Yes",'Balance Tradeoffs- Years 1 to 5'!Q69,"") ->  | AQ47: =IF('Balance Tradeoffs- Years 1 to 5'!$AH69="Yes",'Balance Tradeoffs- Years 1 to 5'!R69,"") ->  | AR47: =IF('Balance Tradeoffs- Years 1 to 5'!$AH69="Yes",'Balance Tradeoffs- Years 1 to 5'!S69,"") -> 
